[Event "22nd Mediterranean Flowers 2022"]
[Site "Rijeka"]
[Date "2022.03.08"]
[Round "4.5"]
[White "Radeva, Viktoria"]
[Black "Berke, Ana"]
[Result "0-1"]
[ECO "B92"]
[WhiteElo "2261"]
[BlackElo "2135"]
[Annotator "RC"]
[PlyCount "84"]
[EventDate "2022.03.07"]
[EventType "tourn"]
[EventCountry "CRO"]
[SourceTitle "playchess.com"]
[Source "ChessBase"]
[SourceQuality "1"]
[TimeControl "5400+30"]

1. e4 {[%emt 0:00:03]} c5 {[%emt 0:00:05]} 2. Nf3 {[%emt 0:00:05]} d6 {[%emt 0:00:04]} 3. d4 {[%emt 0:00:06]} cxd4 {[%emt 0:00:06]} 4. Nxd4 {[%emt 0:00:07]} Nf6 {[%emt 0:00:15]} 5. Nc3 {[%emt 0:00:13]} a6 {[%emt 0:00:06]} 6. Be2 {[%emt 0:00:22]} e5 {[%emt 0:00:12]} 7. Nb3 {[%emt 0:00:04]} Be7 {[%emt 0:00:21]} 8. O-O {[%emt 0:00:43]} O-O {[%emt 0:00:11]} 9. Kh1 {[%emt 0:00:27]} Nc6 {[%emt 0:01:10]} 10. f4 {[%emt 0:02:01]} exf4 {[%emt 0:01:08]} 11. Bxf4 {[%emt 0:00:08]} Ne5 {[%emt 0:02:47]} 12. Qe1 {[%emt 0:03:15]} b5 {[%emt 0:01:21]} 13. Rd1 {[%emt 0:08:31]} Qc7 {[%emt 0:02:21]} 14. Rd4 {[%emt 0:30:10]} Be6 {[%emt 0:08:57]} 15. Qg3 {[%emt 0:02:39]} Rad8 {[%emt 0:08:08]} 16. Rfd1 {[%emt 0:02:53]} Rfe8 {[%emt 0:09:34]} 17. a3 {[%emt 0:07:13]} h5 {[%emt 0:17:35]} 18. Bg5 {[%emt 0:11:26]} Nfg4 {[%emt 0:09:18]} 19. Bxe7 {[%emt 0:03:52]} Qxe7 {[%emt 0:01:13]} 20. Bxg4 {[%emt 0:04:09]} hxg4 {[%emt 0:03:15]} 21. Nd5 {[%emt 0:05:14]} Bxd5 {[%emt 0:02:31]} 22. exd5 {[%emt 0:01:54]} Rc8 {[%emt 0:01:41]} 23. c3 {[%emt 0:00:27]} g6 {[%emt 0:05:41]} 24. Rf1 {[%emt 0:01:31]} Rc4 {[%emt 0:04:09]} 25. Nd2 {[%emt 0:03:46]} Rcc8 {[%emt 0:02:52]} 26. Ne4 {[%emt 0:01:47]} f5 {[%emt 0:01:22]} 27. Nd2 {[%emt 0:00:59]} Kg7 {[%emt 0:00:43]} 28. Kg1 {[%emt 0:01:31]} Rh8 {[%emt 0:00:49]} 29. Re1 {[%emt 0:00:56]} Rh5 {[%emt 0:00:54]} 30. Nf1 {[%emt 0:02:19]} Rf8 {[%emt 0:00:35]} 31. c4 {[%emt 0:04:10]} bxc4 {[%emt 0:03:37]} 32. Qc3 {[%emt 0:01:30]} f4 {[%emt 0:01:16]} 33. Rxc4 {[%emt 0:00:16]} Rf7 {[%emt 0:00:35]} 34. Rce4 {[%emt 0:00:58]} f3 {[%emt 0:01:23]} 35. gxf3 {[%emt 0:00:16]} gxf3 {[%emt 0:01:49]} 36. Kf2 {[%emt 0:01:54]} Qg5 {[%emt 0:00:31]} 37. Qd4 {[%emt 0:00:30]} Qg2+ {[%emt 0:01:15]} 38. Ke3 {[%emt 0:00:01]} f2 {[%emt 0:00:27]} 39. Rc1 {[%emt 0:00:32]} Qg5+ {[%emt 0:01:45]} 40. Rf4 {[%emt 0:00:18]} Rxf4 {[%emt 0:00:43]} 41. Qxf4 {[%emt 0:00:09]} Qxf4+ {[%emt 0:00:14]} 42. Kxf4 {[%emt 0:00:04]} Nd3+ {[%emt 0:00:06]} 0-1

[Event "22nd Mediterranean Flowers 2022"]
[Site "Rijeka"]
[Date "2022.03.09"]
[Round "5.1"]
[White "Berke, Ana"]
[Black "Kejzar, Petra"]
[Result "1/2-1/2"]
[ECO "D85"]
[WhiteElo "2135"]
[BlackElo "2031"]
[Annotator "ChessBase"]
[PlyCount "23"]
[EventDate "2022.03.07"]
[EventType "tourn"]
[EventCountry "CRO"]
[SourceTitle "playchess.com"]
[Source "ChessBase"]
[SourceQuality "1"]
[TimeControl "5400+30"]

1. d4 {[%emt 0:00:37]} Nf6 {[%emt 0:00:03]} 2. c4 {[%emt 0:00:12]} g6 {[%emt 0:00:03]} 3. Nc3 {[%emt 0:00:04]} d5 {[%emt 0:00:03]} 4. cxd5 {[%emt 0:00:08]} Nxd5 {[%emt 0:00:03]} 5. e4 {[%emt 0:00:06]} Nxc3 {[%emt 0:00:03]} 6. bxc3 {[%emt 0:00:07]} Bg7 {[%emt 0:00:02]} 7. Nf3 {[%emt 0:00:12]} c5 {[%emt 0:00:12]} 8. Be3 {[%emt 0:00:04]} O-O {[%emt 0:00:03]} 9. Be2 {[%emt 0:00:08]} Qa5 {[%emt 0:00:18]} 10. Qd2 {[%emt 0:00:08]} Nc6 {[%emt 0:00:07]} 11. Rd1 {[%emt 0:00:17]} Bg4 {[%emt 0:00:22]} 12. O-O {[%emt 0:00:21]} 1/2-1/2

[Event "22nd Mediterranean Flowers 2022"]
[Site "Rijeka"]
[Date "2022.03.11"]
[Round "8.2"]
[White "Medic, Mirjana"]
[Black "Toncheva, Nadya"]
[Result "1/2-1/2"]
[ECO "D04"]
[WhiteElo "2207"]
[BlackElo "2207"]
[Annotator "ChessBase"]
[PlyCount "107"]
[EventDate "2022.03.07"]
[EventType "tourn"]
[EventCountry "CRO"]
[SourceTitle "playchess.com"]
[Source "ChessBase"]
[SourceQuality "1"]
[TimeControl "5400+30"]

1. d4 {[%emt 0:00:02]} d5 {[%emt 0:00:05]} 2. Nf3 {[%emt 0:00:06]} Nf6 {[%emt 0:00:03]} 3. e3 {[%emt 0:00:07]} c5 {[%emt 0:00:04]} 4. b3 {[%emt 0:00:19]} cxd4 {[%emt 0:00:05]} 5. exd4 {[%emt 0:00:07]} Nc6 {[%emt 0:00:03]} 6. Bb2 {[%emt 0:00:33]} Bf5 {[%emt 0:00:05]} 7. Bd3 {[%emt 0:01:53]} Bxd3 {[%emt 0:01:41]} 8. Qxd3 {[%emt 0:00:08]} e6 {[%emt 0:02:04]} 9. a3 {[%emt 0:02:23]} Be7 {[%emt 0:01:44]} 10. Nbd2 {[%emt 0:01:36]} O-O {[%emt 0:01:37]} 11. O-O {[%emt 0:00:37]} Qc7 {[%emt 0:08:05]} 12. Rac1 {[%emt 0:13:23]} Rfd8 {[%emt 0:03:33]} 13. h3 {[%emt 0:11:47]} Rac8 {[%emt 0:01:20]} 14. Rfe1 {[%emt 0:05:17]} Bf8 {[%emt 0:07:00]} 15. c4 {[%emt 0:04:48]} dxc4 {[%emt 0:06:51]} 16. bxc4 {[%emt 0:03:33]} Rd7 {[%emt 0:03:53]} 17. Qe3 {[%emt 0:04:50]} Qd8 {[%emt 0:04:37]} 18. Nb3 {[%emt 0:01:30]} Rdc7 {[%emt 0:03:02]} 19. Red1 {[%emt 0:02:08]} Rd7 {[%emt 0:06:26]} 20. Rd2 {[%emt 0:06:56]} g6 {[%emt 0:12:29]} 21. Rcd1 {[%emt 0:07:29]} Bg7 {[%emt 0:01:46]} 22. Ne5 {[%emt 0:02:10]} Rdc7 {[%emt 0:03:49]} 23. d5 {[%emt 0:07:29]} Nxe5 {[%emt 0:09:21]} 24. Bxe5 {[%emt 0:00:03]} Rxc4 {[%emt 0:00:09]} 25. dxe6 {[%emt 0:00:43]} Qe8 {[%emt 0:00:25]} 26. exf7+ {[%emt 0:03:21]} Qxf7 {[%emt 0:00:07]} 27. Rd8+ {[%emt 0:01:30]} Bf8 {[%emt 0:00:55]} 28. Qf3 {[%emt 0:05:52]} Rxd8 {[%emt 0:05:55]} 29. Rxd8 {[%emt 0:00:02]} Ne8 {[%emt 0:00:22]} 30. Qd3 {[%emt 0:01:12]} Rc6 {[%emt 0:02:30]} 31. f4 {[%emt 0:04:48]} Bxa3 {[%emt 0:04:35]} 32. Na5 {[%emt 0:02:11]} Bc5+ {[%emt 0:00:54]} 33. Kh2 {[%emt 0:00:16]} Re6 {[%emt 0:00:12]} 34. Qd5 {[%emt 0:00:45]} Bb6 {[%emt 0:01:40]} 35. Nxb7 {[%emt 0:00:40]} Re7 {[%emt 0:00:35]} 36. Qb5 {[%emt 0:05:02]} Bxd8 {[%emt 0:01:56]} 37. Nxd8 {[%emt 0:00:02]} Qf5 {[%emt 0:01:43]} 38. Nc6 {[%emt 0:01:00]} Rd7 {[%emt 0:04:43]} 39. Nxa7 {[%emt 0:00:27]} Qe6 {[%emt 0:00:38]} 40. Nc6 {[%emt 0:00:34]} Kf7 {[%emt 0:01:47]} 41. Nd4 {[%emt 0:00:31]} Qd5 {[%emt 0:00:12]} 42. Qb8 {[%emt 0:00:54]} Ng7 {[%emt 0:00:38]} 43. Nf3 {[%emt 0:00:41]} h6 {[%emt 0:01:27]} 44. Qh8 {[%emt 0:00:31]} Nf5 {[%emt 0:00:28]} 45. Qf6+ {[%emt 0:00:30]} Ke8 {[%emt 0:00:01]} 46. Qh8+ {[%emt 0:01:13]} Kf7 {[%emt 0:00:28]} 47. Qf6+ {[%emt 0:00:13]} Ke8 {[%emt 0:00:04]} 48. Qxg6+ {[%emt 0:00:04]} Qf7 {[%emt 0:00:04]} 49. Qc6 {[%emt 0:00:18]} Qd5 {[%emt 0:01:38]} 50. Qf6 {[%emt 0:01:12]} Rf7 {[%emt 0:00:33]} 51. Qg6 {[%emt 0:00:19]} Ke7 {[%emt 0:00:19]} 52. Qb6 {[%emt 0:00:46]} Kf8 {[%emt 0:01:07]} 53. Qb8+ {[%emt 0:00:48]} Ke7 {[%emt 0:00:03]} 54. Qc7+ {[%emt 0:00:44]} 1/2-1/2

[Event "22nd Mediterranean Flowers 2022"]
[Site "Rijeka"]
[Date "2022.03.12"]
[Round "9.1"]
[White "Kubicka, Anna"]
[Black "Kejzar, Petra"]
[Result "1-0"]
[ECO "B46"]
[WhiteElo "2266"]
[BlackElo "2031"]
[Annotator "ChessBase"]
[PlyCount "51"]
[EventDate "2022.03.07"]
[EventType "tourn"]
[EventCountry "CRO"]
[SourceTitle "playchess.com"]
[Source "ChessBase"]
[SourceQuality "1"]
[TimeControl "5400+30"]

1. e4 {[%emt 0:00:02]} c5 {[%emt 0:00:04]} 2. Nf3 {[%emt 0:00:05]} e6 {[%emt 0:00:10]} 3. d4 {[%emt 0:00:05]} cxd4 {[%emt 0:00:02]} 4. Nxd4 {[%emt 0:00:05]} Nc6 {[%emt 0:00:05]} 5. Nc3 {[%emt 0:00:10]} a6 {[%emt 0:01:18]} 6. Nxc6 {[%emt 0:00:45]} bxc6 {[%emt 0:00:39]} 7. Bd3 {[%emt 0:00:05]} Qc7 {[%emt 0:01:13]} 8. O-O {[%emt 0:00:29]} Nf6 {[%emt 0:00:14]} 9. Qe2 {[%emt 0:02:35]} h5 {[%emt 0:01:53]} 10. e5 {[%emt 0:08:31]} Ng4 {[%emt 0:00:34]} 11. Bf4 {[%emt 0:01:20]} g5 {[%emt 0:13:34]} 12. Bxg5 {[%emt 0:05:10]} Rg8 {[%emt 0:05:34]} 13. Bf4 {[%emt 0:01:37]} f6 {[%emt 0:09:05]} 14. h3 {[%emt 0:03:48]} Nxe5 {[%emt 0:06:51]} 15. Qxh5+ {[%emt 0:01:20]} Kd8 {[%emt 0:01:00]} 16. Ne4 {[%emt 0:16:18]} Be7 {[%emt 0:02:39]} 17. Rfe1 {[%emt 0:02:00]} d6 {[%emt 0:02:14]} 18. Qh7 {[%emt 0:01:29]} Rf8 {[%emt 0:01:25]} 19. Bh6 {[%emt 0:06:07]} Rf7 {[%emt 0:02:24]} 20. Qg8+ {[%emt 0:00:34]} Kd7 {[%emt 0:00:11]} 21. Nc5+ {[%emt 0:05:28]} dxc5 {[%emt 0:00:07]} 22. Rxe5 {[%emt 0:03:52]} Qxe5 {[%emt 0:01:17]} 23. Qxf7 {[%emt 0:00:05]} Kd8 {[%emt 0:07:06]} 24. Rd1 {[%emt 0:02:18]} Bd6 {[%emt 0:05:18]} 25. g3 {[%emt 0:00:46]} Qxb2 {[%emt 0:06:26]} 26. Bg6 {[%emt 0:01:28]} 1-0